Cogmind - Beta 12 @@@ ROGUE MODE // 2023.06.12 @ 12:47:04 Player: LustLizard Result: Self-destructed Performance ------------- Evolutions (5) 2500 Regions Visited (12) 2400 Robots Destroyed (98) 490 Value Destroyed (3502) 3502 Prototype IDs (33) 660 Alien Tech Used (0) 0 Bonus (767) 767 TOTAL SCORE: 10319 Bonus ------- High Alert Combat Kills 34 Follower Combat Kills 433 Aligned with FarCom 300 Cogmind --------- Core Integrity 872/1000 Matter 232/300 Energy 287/290 System Corruption 2% Temperature Cool (27) Movement Treading (163) Location -5/Upper Caves Parts ------- > --- POWER (2) -------- Improved Deuterium Engine > --- PROPULSION (5) --- Medium Treads Medium Treads Armored Medium Treads > --- UTILITY (8) ------ Improved Cooling System Large Storage Unit Improved Signal Interpreter Improved Terrain Scan Processor > --- WEAPON (2) ------- Wave Gun Enhanced Gauss Cannon > --- INVENTORY (15) --- Light Angular Momentum Engine Light Angular Momentum Engine Medium Treads Improved Cooling System Medium Storage Unit Matter Compressor (53) Improved Terrain Scanner Heavy Laser Firepult Heavy Assault Rifle Heavy Flak Cannon Enhanced Gauss Cannon Scatter Rocket Array Power Sword Peak State ------------ > --- POWER ------------ Improved Deuterium Engine Fission Core > --- PROPULSION ------- Armored Treads Medium Treads Medium Treads Improved Medium Treads Armored Medium Treads > --- UTILITY ---------- Improved Cooling System Improved Cooling System Large Storage Unit Improved Sensor Array Improved Signal Interpreter Improved Terrain Scanner Improved Terrain Scan Processor Hardened Light Armor Plating > --- WEAPON ----------- Wave Gun Enhanced Gauss Cannon > --- INVENTORY -------- Light Angular Momentum Engine Light Angular Momentum Engine Medium Treads Medium Treads Improved Cooling System Medium Storage Unit Matter Compressor Improved Terrain Scanner Advanced Beam Rifle Firepult Heavy Flak Cannon Enhanced Gauss Cannon Scatter Rocket Array Power Sword [Rating: 73] Favorites ----------- Power Reinforced Ion Engine Engine Reinforced Ion Engine Power Core Fission Core Propulsion Light Treads Treads Light Treads Wheel Wheel Utility Large Storage Unit Device Improved Sensor Array Storage Large Storage Unit Processor Improved Signal Interpreter Protection Hardened Light Armor Plating Weapon Autogun Energy Gun Advanced Beam Rifle Energy Cannon Plasma Cannon Ballistic Gun Autogun Ballistic Cannon Enhanced Gauss Cannon Launcher Missile Launcher Build | -11 -10 -10 -9 -9 -9 -8 -8 -8 -7 -6 -5 -5 ------- Run | Jun Mat Min Mat Min Exi Min Mat Sto Fac Fac Fac Upp Slots Evolved 10 | . . . 2 . . . 2 . 2 2 2 . Power 1 | . . . . . . . . . 1 . . . Propulsion 3 | . . . . . . . 1 . . 1 1 . Utility 6 | . . . 2 . . . 1 . 1 1 1 . Weapon . | . . . . . . . . . . . . . Parts Attached 112 | 6 13 1 10 7 2 . 5 22 16 19 10 1 Power 15 | 1 3 . 1 1 . . . 2 2 4 1 . Engine 12 | 1 3 . 1 1 . . . 2 . 3 1 . Core 3 | . . . . . . . . . 2 1 . . Reactor . | . . . . . . . . . . . . . Propulsion 31 | 2 3 . 2 1 . . 3 5 2 8 4 1 Treads 28 | 1 2 . 2 . . . 3 5 2 8 4 1 Leg . | . . . . . . . . . . . . . Wheel 3 | 1 1 . . 1 . . . . . . . . Hover . | . . . . . . . . . . . . . Flight . | . . . . . . . . . . . . . Utility 31 | 1 3 1 3 3 1 . 2 3 9 3 2 . Device 14 | . . 1 1 1 . . 1 1 4 3 2 . Storage 5 | 1 1 . . . . . 1 1 1 . . . Processor 4 | . 1 . 1 1 . . . . 1 . . . Hackware . | . . . . . . . . . . . . . Protection 8 | . 1 . 1 1 1 . . 1 3 . . . Artifact . | . . . . . . . . . . . . . Weapon 35 | 2 4 . 4 2 1 . . 12 3 4 3 . Energy Gun 6 | . . . . . . . . 4 1 . 1 . Energy Cannon 10 | . . . . . 1 . . 5 2 2 . . Ballistic Gun 11 | 2 4 . 3 1 . . . . . 1 . . Ballistic Cannon 2 | . . . . . . . . . . . 2 . Launcher 6 | . . . 1 1 . . . 3 . 1 . . Special Weapon . | . . . . . . . . . . . . . Impact Weapon . | . . . . . . . . . . . . . Slashing Weapon . | . . . . . . . . . . . . . Piercing Weapon . | . . . . . . . . . . . . . Special Melee Weapon . | . . . . . . . . . . . . . Unidentified Prototypes 6 | . . . . . . . . 5 . 1 . . Parts Lost 14 | . . . . . . . . 1 1 3 1 8 Power 2 | . . . . . . . . . . 1 . 1 Propulsion 4 | . . . . . . . . 1 . . . 3 Utility 7 | . . . . . . . . . 1 1 1 4 Weapon 1 | . . . . . . . . . . 1 . . Highest Loss Streak 6 | . . . . . . . . 1 1 1 1 6 To Critical Strikes . | . . . . . . . . . . . . . Average Slot Usage (%) 99 | . 100 100 100 100 100 100 96 99 99 99 96 93 Engine 9 | . 14 14 11 11 11 11 9 8 7 8 5 5 Core 2 | . . . . . . . . . 7 3 5 4 Treads 19 | . 14 14 11 11 11 11 18 25 23 26 28 28 Wheel 5 | . 14 14 11 11 11 11 9 1 . . . . Device 12 | . . 13 11 10 11 11 14 18 9 14 20 16 Storage 9 | . 14 14 11 11 11 11 9 9 7 6 5 5 Processor 9 | . 3 . 11 11 11 11 9 9 15 13 11 11 Protection 9 | . 10 . 11 11 11 11 9 9 12 11 5 4 Energy Gun 2 | . . . . . . . . 7 7 4 3 5 Energy Cannon 3 | . . . . . 5 11 9 6 7 6 1 . Ballistic Gun 10 | . 28 28 21 20 16 11 9 1 . 1 1 . Naked Turns . | . . . . . . . . . . . . . Heaviest Build 71 | 11 36 36 40 42 45 45 46 48 57 71 71 64 Greatest Support 133 | 10 20 10 20 10 10 10 20 64 64 106 133 133 Greatest Overweight (x) 4 | 1 3 3 3 4 4 4 4 4 . . . . Average Overweight (x) 1 | . 2 3 1 3 4 4 3 . . . . . Largest Inventory Capacity 15 | 8 15 15 15 15 15 15 15 15 15 15 15 15 Average Capacity 14 | 6 11 15 15 15 15 15 15 15 15 15 15 15 Most Carried 15 | 6 15 15 15 15 15 15 15 15 15 15 15 15 Average Carried 14 | 4 10 15 14 14 14 15 14 14 14 14 14 14 Final Capacity 15 | 8 15 15 15 15 15 15 15 15 15 15 15 15 Final Carried 15 | 6 15 15 15 15 15 15 15 15 14 15 15 15 Class Distribution -------------------- 55% | Mutant 17% | Skirmisher 14% | Scavenger-Skirmisher 6% | Commander-Skirmisher 4% | Commander-Mutant Dominant Class ---------------- Mutant | -10/Materials Mutant | -10/Mines Mutant | -9/Materials Mutant | -9/Mines Mutant | -9/Exiles Skirmisher | -8/Mines Scavenger-Skirmisher | -8/Materials Commander-Mutant | -8/Storage Mutant | -7/Factory Skirmisher | -6/Factory Scavenger-Skirmisher | -5/Factory Mutant | -5/Upper Caves Resources | -11 -10 -10 -9 -9 -9 -8 -8 -8 -7 -6 -5 -5 ----------- Run | Jun Mat Min Mat Min Exi Min Mat Sto Fac Fac Fac Upp Matter Collected 2570 | 243 340 . 408 250 . . 101 374 260 268 176 150 Remotely . | . . . . . . . . . . . . . Salvage Created 3656 | . 483 . 780 186 . . 161 584 531 472 214 245 Parts 198 | . 33 . 44 11 . . 11 25 24 31 8 11 Haulers Intercepted 2 | . . . 1 . . . . 1 . . . . Recyclers Shooed 9 | . 1 . 5 . . . 1 . . 2 . . Parts Field Recycled . | . . . . . . . . . . . . . Retrieved Matter . | . . . . . . . . . . . . . Parts Self-Destructed 10 | . . . . . . . . . . . . 10 Prevented . | . . . . . . . . . . . . . Kills | -11 -10 -10 -9 -9 -9 -8 -8 -8 -7 -6 -5 -5 ------- Run | Jun Mat Min Mat Min Exi Min Mat Sto Fac Fac Fac Upp Combat Hostiles Destroyed 75 | . 13 . 10 7 . . 3 11 12 8 4 7 Guns 48 | . 13 . 10 7 . . . 2 7 3 4 2 Cannons 16 | . . . . . . . 3 1 3 4 . 5 AOE 8 | . . . . . . . . 8 . . . . Classes Destroyed 16 | . 4 . 3 2 . . . 1 1 4 1 . Worker 2 | . . . 2 . . . . . . . . . Builder 1 | . . . . . . . . . . 1 . . Hauler 2 | . . . 1 . . . . 1 . . . . Recycler 9 | . 2 . 3 . . . . 4 . . . . Operator 1 | . . . . . . . . 1 . . . . Watcher 8 | . 1 . 4 . . . . 1 2 . . . Swarmer 15 | . 6 . . 3 . . . . 4 . . 2 Grunt 31 | . 7 . 6 2 . . . 8 5 . 2 1 Brawler 1 | . . . . 1 . . . . . . . . Duelist 1 | . . . . . . . . . . . 1 . Sentry 13 | . . . 4 . . . 3 3 1 1 1 . Demolisher 1 | . . . . 1 . . . . . . . . Specialist 2 | . . . . . . . . . . 2 . . Hunter 3 | . . . . . . . . . . 1 . 2 Programmer 7 | . . . . . . . . . 2 3 . 2 Heavy 1 | . . . . . . . . . . 1 . . Best Kill Streak 8 | . 3 . 5 3 . . 2 8 4 2 3 4 Combat Bots Only 6 | . 3 . 2 3 . . 2 6 4 2 3 4 Max Kills in Single Turn 2 | . 2 . 1 2 . . 1 2 1 2 1 1 Gunslinging 1 | . 1 . . 1 . . . . . . . . Exploded 2 | . . . . . . . . 2 . . . . Melee . | . . . . . . . . . . . . . Uniques/NPCs Destroyed . | . . . . . . . . . . . . . Combat | -11 -10 -10 -9 -9 -9 -8 -8 -8 -7 -6 -5 -5 -------- Run | Jun Mat Min Mat Min Exi Min Mat Sto Fac Fac Fac Upp Damage Taken 5742 | . 263 15 368 251 . . 223 614 981 1315 332 1380 Core 588 | . 50 12 41 19 . . . 72 55 211 24 104 Absorbed by Shields 104 | . . . . . . . . . . 92 12 . Core Remaining (%) 85 | 100 . 75 . . . 85 . 86 92 75 . . Volleys Fired 266 | . 32 . 51 9 . . 12 43 34 45 14 26 Largest 2 | . 2 . 2 2 . . 2 2 2 2 2 2 Hottest 148 | . 46 . 46 46 . . 91 129 143 148 138 138 Shots Fired 503 | . 64 . 102 18 . 1 23 58 69 88 28 52 Gun 339 | . 64 . 102 18 . . 12 24 35 44 14 26 Cannon 153 | . . . . . . 1 11 23 34 44 14 26 Launcher 11 | . . . . . . . . 11 . . . . Special . | . . . . . . . . . . . . . Kinetic 268 | . 64 . 102 18 . . 12 18 . 14 14 26 Thermal 224 | . . . . . . 1 11 29 69 74 14 26 Explosive 11 | . . . . . . . . 11 . . . . Electromagnetic . | . . . . . . . . . . . . . Robot Hit Streak 21 | . 7 . 21 17 . . 6 12 12 15 6 13 Robot Miss Streak 4 | . 4 . 2 1 . 1 1 2 3 4 2 3 Penetration Max 1 | . . . . . . . . . . 1 . . Secondary Targets 5 | . 3 . . 2 . . . . . . . . Max Gunslinging Chain 1 | . 1 . . 1 . . . . . . . . Shots Hit Robots 350 | . 40 . 82 14 . . 16 36 41 63 18 40 Core Hits 162 | . 20 1 30 7 . . 6 38 20 18 9 13 Critical Kills 1 | . . . 1 . . . . . . . . . Critical Parts Destroyed 2 | . . . 1 1 . . . . . . . . Critical Strikes 17 | . . . 2 1 . . 1 2 1 3 . 7 Burn 8 | . . . . . . . . 2 1 3 . 2 Destroy 4 | . . . 2 1 . . 1 . . . . . Blast 5 | . . . . . . . . . . . . 5 Melee Attacks . | . . . . . . . . . . . . . Impact . | . . . . . . . . . . . . . Slashing . | . . . . . . . . . . . . . Piercing . | . . . . . . . . . . . . . Sneak Attacks . | . . . . . . . . . . . . . Combat Hostiles . | . . . . . . . . . . . . . Follow-up Attacks . | . . . . . . . . . . . . . Damage Inflicted 8487 | . 642 6 1229 217 . . 277 1797 977 1650 474 1218 Guns 4305 | . 642 . 1229 217 . . 136 298 461 604 224 494 Cannons 2868 | . . . . . . . 141 207 500 1046 250 724 Explosions 1308 | . . . . . . . . 1292 16 . . . Melee . | . . . . . . . . . . . . . Ramming 6 | . . 6 . . . . . . . . . . Kinetic 3606 | . 642 . 1229 217 . . 136 218 . 256 184 724 Thermal 3567 | . . . . . . . 141 287 961 1394 290 494 Explosive 1308 | . . . . . . . . 1292 16 . . . Electromagnetic . | . . . . . . . . . . . . . Impact . | . . . . . . . . . . . . . Slashing . | . . . . . . . . . . . . . Piercing . | . . . . . . . . . . . . . Highest Corruption 3 | . . . 3 3 3 3 . . 3 1 2 2 Average Corruption 2 | . . . 2 3 3 3 . . 2 1 2 2 Corruption Purged . | . . . . . . . . . . . . . Corruption Blocked . | . . . . . . . . . . . . . Effects 68 | . . . 4 22 5 4 . . 19 6 7 1 Message Errors 11 | . . . . 6 1 . . . 2 . 2 . Matter Fused 19 | . . . 3 3 2 . . . 8 1 1 1 Heat Flow Errors 7 | . . . . 3 1 . . . 1 1 1 . Energy Discharges 12 | . . . . 4 1 1 . . 2 2 2 . Parts Fused 2 | . . . . . . 1 . . 1 . . . Data Loss (minor) 9 | . . . . 2 . 1 . . 4 1 1 . Data Loss (major) 2 | . . . . 2 . . . . . . . . Misfires 4 | . . . 1 1 . 1 . . 1 . . . Weapon Failures 2 | . . . . 1 . . . . . 1 . . Overload Shots . | . . . . . . . . . . . . . Overflow Damage 63 | . . . . . . . . 20 . 10 . 33 Projectiles 43 | . . . . . . . . . . 10 . 33 Explosions 20 | . . . . . . . . 20 . . . . Melee . | . . . . . . . . . . . . . Knockbacks 6 | . . . . . . . . . . . 3 3 Impact . | . . . . . . . . . . . . . Kinetic 5 | . . . . . . . . . . . 3 2 Secondary 1 | . . . . . . . . . . . . 1 Self-Inflicted Damage 147 | . . 3 . . . . . 32 112 . . . Shots 2 | . . . . . . . . 1 1 . . . Rammed 1 | . . 1 . . . . . . . . . . Targets Rammed 1 | . . 1 . . . . . . . . . . Kicked . | . . . . . . . . . . . . . Crushed . | . . . . . . . . . . . . . Highest Temperature 419 | . 97 . 37 178 215 36 108 48 294 419 141 27 Average Temperature 61 | . 21 . 10 66 110 19 43 14 87 110 18 14 Received Heat Transfer 1156 | . 48 6 153 30 . . 63 297 210 128 113 108 Effects 1 | . . . . . . . . . . 1 . . Interference 1 | . . . . . . . . . . 1 . . Siege Activations . | . . . . . . . . . . . . . Robots Corrupted . | . . . . . . . . . . . . . Combat Hostiles . | . . . . . . . . . . . . . Parts Fried . | . . . . . . . . . . . . . Impact Corruptions . | . . . . . . . . . . . . . Robots Melted 3 | . . . . . . . . . 2 1 . . Combat Hostiles 3 | . . . . . . . . . 2 1 . . Parts Melted 26 | . . . . . . . 1 . 7 16 . 2 Heat Transferred 6406 | . . . . . . . 259 666 1875 2311 407 888 Parts Sabotaged . | . . . . . . . . . . . . . Parts Stolen . | . . . . . . . . . . . . . Parts Stripped . | . . . . . . . . . . . . . Power Chain Reactions . | . . . . . . . . . . . . . Missiles Intercepted . | . . . . . . . . . . . . . Alert | -11 -10 -10 -9 -9 -9 -8 -8 -8 -7 -6 -5 -5 ------- Run | Jun Mat Min Mat Min Exi Min Mat Sto Fac Fac Fac Upp Peak Influence 819 | . 239 . 218 208 . . 150 819 393 246 103 . Initial 372 | . . . . 75 . . . 63 372 142 51 . Average 175 | . 86 . 108 94 . . 101 495 312 142 46 . Maximum Alert Level 3 | . 1 . 1 1 . . . 3 1 1 . . Low Security (%) 66 | 100 96 100 88 97 . 100 100 7 4 70 100 . Level 1 23 | . 3 . 11 2 . . . 24 95 29 . . Level 2 5 | . . . . . . . . 39 . . . . Level 3 4 | . . . . . . . . 29 . . . . Level 4 . | . . . . . . . . . . . . . Level 5 . | . . . . . . . . . . . . . High Security . | . . . . . . . . . . . . . Max Security . | . . . . . . . . . . . . . Squads Dispatched 15 | . 2 . 1 . . . 1 5 3 3 . . Investigation 3 | . 1 . . . . . . 1 1 . . . Extermination 3 | . . . . . . . . . 2 1 . . Reinforcement 7 | . 1 . 1 . . . 1 2 . 2 . . Assault . | . . . . . . . . . . . . . Garrison 2 | . . . . . . . . 2 . . . . Intercept . | . . . . . . . . . . . . . Searches Triggered . | . . . . . . . . . . . . . Construction Impeded . | . . . . . . . . . . . . . Haulers Reinforced . | . . . . . . . . . . . . . Active Scanning Responses . | . . . . . . . . . . . . . Cargo Convoy Interrupts . | . . . . . . . . . . . . . Stealth | -11 -10 -10 -9 -9 -9 -8 -8 -8 -7 -6 -5 -5 --------- Run | Jun Mat Min Mat Min Exi Min Mat Sto Fac Fac Fac Upp Distress Signals 9 | . . . 3 2 . . . 3 1 . . . Communications Jammed . | . . . . . . . . . . . . . Distress Signals . | . . . . . . . . . . . . . Times Spotted 119 | . 23 2 17 8 . . 4 17 25 10 5 8 Peak Tracking Total 5 | . 3 2 4 4 . . 1 5 5 3 3 5 Tactical Retreats 3 | . 2 . . 1 . . . . . . . . Traps | -11 -10 -10 -9 -9 -9 -8 -8 -8 -7 -6 -5 -5 ------- Run | Jun Mat Min Mat Min Exi Min Mat Sto Fac Fac Fac Upp Traps Triggered 7 | . 1 . 2 . . . . . 3 . 1 . Indirectly . | . . . . . . . . . . . . . Trap Hack Attempts . | . . . . . . . . . . . . . Triggered . | . . . . . . . . . . . . . Disarmed . | . . . . . . . . . . . . . Reprogrammed . | . . . . . . . . . . . . . Reused . | . . . . . . . . . . . . . Traps Extracted . | . . . . . . . . . . . . . Installed . | . . . . . . . . . . . . . Triggered . | . . . . . . . . . . . . . Machines | -11 -10 -10 -9 -9 -9 -8 -8 -8 -7 -6 -5 -5 ---------- Run | Jun Mat Min Mat Min Exi Min Mat Sto Fac Fac Fac Upp Machines Disabled 14 | . 1 . . . . . . 8 2 1 1 1 Max in Single Turn 1 | . 1 . . . . . . 1 1 1 1 1 Garrison Access 1 | . . . . . . . . . . . 1 . Machines Repaired . | . . . . . . . . . . . . . Machines Sabotaged . | . . . . . . . . . . . . . Overloaded Fab Kills . | . . . . . . . . . . . . . Hacking | -11 -10 -10 -9 -9 -9 -8 -8 -8 -7 -6 -5 -5 --------- Run | Jun Mat Min Mat Min Exi Min Mat Sto Fac Fac Fac Upp Machines Accessed 20 | . 6 . 2 1 1 . . 4 2 1 2 1 Terminals 16 | . 6 . 2 1 . . . 4 2 . 1 . Fabricators 1 | . . . . . . . . . . 1 . . Repair Stations . | . . . . . . . . . . . . . Recycling Units . | . . . . . . . . . . . . . Scanalyzers . | . . . . . . . . . . . . . Garrison Access 1 | . . . . . . . . . . . 1 . Total Hacks 48 | . 23 . 4 3 1 . . 6 3 1 6 1 Successful 25 | . 14 . 2 2 1 . . 2 . 1 2 1 Failed 22 | . 8 . 2 1 . . . 4 3 . 4 . Catastrophic 8 | . 1 . . . . . . 2 2 . 3 . Database Lockouts 1 | . 1 . . . . . . . . . . . Manual 32 | . 17 . 2 . 1 . . 7 1 . 4 . Terminals 43 | . 23 . 4 3 . . . 6 3 . 4 . Fabricators 1 | . . . . . . . . . . 1 . . Repair Stations . | . . . . . . . . . . . . . Recycling Units . | . . . . . . . . . . . . . Scanalyzers . | . . . . . . . . . . . . . Garrison Access 2 | . . . . . . . . . . . 2 . Terminal Hacks 17 | . 9 . 1 2 1 . . 2 . . 1 1 Robot Analysis 3 | . 3 . . . . . . . . . . . Prototype ID Bank 2 | . 2 . . . . . . . . . . . Open Door 3 | . . . . . . . . 2 . . . 1 Level Access Points 1 | . . . . 1 . . . . . . . . Branch Access Points 1 | . . . 1 . . . . . . . . . Unreport Threat 2 | . 1 . . . . . . . . . 1 . Locate Traps 3 | . 3 . . . . . . . . . . . Zone Layout 1 | . . . . 1 . . . . . . . . EX-Prototype ID Bank 1 | . . . . . 1 . . . . . . . Fabricator Hacks 1 | . . . . . . . . . . 1 . . Build 1 | . . . . . . . . . . 1 . . Repair Station Hacks . | . . . . . . . . . . . . . Recycling Unit Hacks . | . . . . . . . . . . . . . Scanalyzer . | . . . . . . . . . . . . . Garrison Access Hacks 1 | . . . . . . . . . . . 1 . Seal Access 1 | . . . . . . . . . . . 1 . Unauthorized Hacks 6 | . 5 . 1 . . . . . . . . . Terminals 6 | . 5 . 1 . . . . . . . . . Botnet 6 | . 5 . 1 . . . . . . . . . Fabricators . | . . . . . . . . . . . . . Repair Stations . | . . . . . . . . . . . . . Recycling Units . | . . . . . . . . . . . . . Scanalyzers . | . . . . . . . . . . . . . Garrison Access . | . . . . . . . . . . . . . Data Cores Recovered . | . . . . . . . . . . . . . Used . | . . . . . . . . . . . . . Hacking Detections 17 | . 6 . 2 1 . . . 4 2 1 1 . Full Trace Events 2 | . 1 . . . . . . 1 . . . . Feedback Events . | . . . . . . . . . . . . . Feedback Blocked . | . . . . . . . . . . . . . Robot Schematics Acquired . | . . . . . . . . . . . . . Robots Built . | . . . . . . . . . . . . . Authchips . | . . . . . . . . . . . . . Time . | . . . . . . . . . . . . . Total Robot Build Rating . | . . . . . . . . . . . . . Part Schematics Acquired . | . . . . . . . . . . . . . Parts Built 2 | . . . . . . . . . . 2 . . Authchips . | . . . . . . . . . . . . . Time 47 | . . . . . . . . . . 47 . . Total Part Build Rating 10 | . . . . . . . . . . 10 . . Parts Repaired . | . . . . . . . . . . . . . Time . | . . . . . . . . . . . . . Parts Recycled . | . . . . . . . . . . . . . Recycled Matter . | . . . . . . . . . . . . . Retrieved Matter . | . . . . . . . . . . . . . Retrieved Components . | . . . . . . . . . . . . . Parts Scanalyzed . | . . . . . . . . . . . . . Part Schematics Acquired . | . . . . . . . . . . . . . Parts Damaged . | . . . . . . . . . . . . . Bothacking | -11 -10 -10 -9 -9 -9 -8 -8 -8 -7 -6 -5 -5 ------------ Run | Jun Mat Min Mat Min Exi Min Mat Sto Fac Fac Fac Upp Used RIF Installer . | . . . . . . . . . . . . . Robots Hacked . | . . . . . . . . . . . . . Non-combat . | . . . . . . . . . . . . . Combat . | . . . . . . . . . . . . . Robot Hacks Applied . | . . . . . . . . . . . . . Relay Couplers Released . | . . . . . . . . . . . . . Fabnet Peak Effective % . | . . . . . . . . . . . . . Robots Rewired . | . . . . . . . . . . . . . Allies Hacked . | . . . . . . . . . . . . . Hacks Repelled . | . . . . . . . . . . . . . Allies | -11 -10 -10 -9 -9 -9 -8 -8 -8 -7 -6 -5 -5 -------- Run | Jun Mat Min Mat Min Exi Min Mat Sto Fac Fac Fac Upp Total Allies 14 | . . 1 . 3 . . . 10 . . . . Largest Group 10 | . . 1 . 3 . . . 10 8 . . . Highest-Rated Group 173 | . . 31 . 40 . . . 173 141 . . . Highest-Rated Ally 31 | . . 31 . 16 . . . 29 29 . . . Total Orders . | . . . . . . . . . . . . . Ally Attacks 128 | . . . . 6 . . . 102 20 . . . Total Damage 1621 | . . . . 51 . . . 1351 219 . . . Kills 18 | . . . . . . . . 15 3 . . . Allies Corrupted . | . . . . . . . . . . . . . Allies Melted . | . . . . . . . . . . . . . Intel | -11 -10 -10 -9 -9 -9 -8 -8 -8 -7 -6 -5 -5 ------- Run | Jun Mat Min Mat Min Exi Min Mat Sto Fac Fac Fac Upp Robot Analysis Total 3 | . 3 . . . . . . . . . . . Derelict Logs Recovered 2 | . . 1 . 1 . . . . . . . . Drone Launches . | . . . . . . . . . . . . . Drone Recoveries . | . . . . . . . . . . . . . Exploration | -11 -10 -10 -9 -9 -9 -8 -8 -8 -7 -6 -5 -5 ------------- Run | Jun Mat Min Mat Min Exi Min Mat Sto Fac Fac Fac Upp Turns Passed 8685 | 50 1091 525 795 837 305 225 383 1101 1260 940 803 370 Spaces Moved 5042 | 44 804 413 315 535 214 159 208 556 703 486 426 179 Core 11 | 11 . . . . . . . . . . . . Treads 2519 | . 8 . 189 . . . 25 503 703 486 426 179 Legs . | . . . . . . . . . . . . . Wheels 2512 | 33 796 413 126 535 214 159 183 53 . . . . Hover . | . . . . . . . . . . . . . Flight . | . . . . . . . . . . . . . Fastest Speed 50 | 50 95 125 125 125 140 140 140 140 153 151 163 164 Average Speed 145 | 79 112 125 194 131 140 140 161 159 153 156 165 164 Slowest Speed 320 | 95 240 125 240 140 140 140 320 240 153 167 168 164 Overloaded Moves . | . . . . . . . . . . . . . Propulsion Burnouts . | . . . . . . . . . . . . . Robots Hopped . | . . . . . . . . . . . . . Cave-ins Triggered . | . . . . . . . . . . . . . Exploration Rate (%) 41 | 3 86 88 31 77 59 31 18 66 23 12 11 32 Regions Visited 12 Branch Regions 6 Pre-discovered Areas . | . . . . . . . . . . . . . Known Exits Taken 9 | . . . 1 1 1 1 1 1 1 1 1 . Unknown Exits Taken 3 | 1 1 1 . . . . . . . . . . Scrap Searched . | . . . . . . . . . . . . . Spaces Dug . | . . . . . . . . . . . . . Terrain Destroyed 148 | . . . . . . . . 82 50 5 5 6 Melee . | . . . . . . . . . . . . . Projectile 16 | . . . . . . . . . . 5 5 6 AOE 132 | . . . . . . . . 82 50 . . . Terrain Rammed . | . . . . . . . . . . . . . Walls Destroyed . | . . . . . . . . . . . . . Machines Disabled . | . . . . . . . . . . . . . Actions | -11 -10 -10 -9 -9 -9 -8 -8 -8 -7 -6 -5 -5 --------- Run | Jun Mat Min Mat Min Exi Min Mat Sto Fac Fac Fac Upp Total 5918 | 56 946 421 402 648 220 161 234 714 825 581 501 209 Wait 342 | . 65 5 15 93 . 3 1 65 50 5 40 . Move 5030 | 43 803 412 314 534 213 158 207 555 702 485 425 179 Hop . | . . . . . . . . . . . . . Pick Up 67 | 7 16 1 5 1 2 . 4 7 8 10 4 2 Fast Attach 39 | 5 4 . 1 1 . . . 12 3 9 4 . Attach 26 | 1 2 . 3 1 1 . 2 2 6 4 3 1 Detach 3 | . . . . . . . . 1 2 . . . Swap 47 | . 7 1 6 5 1 . 3 8 7 6 3 . Drop 97 | . 17 1 7 4 3 . 5 21 13 17 8 1 Fire 266 | . 32 . 51 9 . . 12 43 34 45 14 26 Melee . | . . . . . . . . . . . . . Ram 1 | . . 1 . . . . . . . . . . Kick . | . . . . . . . . . . . . . Crush . | . . . . . . . . . . . . . Escape Stasis . | . . . . . . . . . . . . . Rewire . | . . . . . . . . . . . . . Trap . | . . . . . . . . . . . . . Miscellaneous . | . . . . . . . . . . . . . Route ------- -11/Junkyard -10/Materials (discovered 4 exits: *Mat x3 / [*Min]) -10/Mines -9/Materials -9/Mines (discovered 4 exits: *Mat x2 / *Exi / *Zio) -9/Exiles -8/Mines -8/Materials (discovered 2 exits: *Sto x2) -8/Storage -7/Factory -6/Factory -5/Factory (discovered 2 exits: *Fac / *Upp) -5/Upper Caves History --------- Turn | Location | Event 23 | -11/Junkyard | Discovered new exit (range 16) 51 | -11/Junkyard | Entered Materials 201 | -10/Materials | Discovered new exit (range 6) 316 | -10/Materials | Build established: Mutant 317 | -10/Materials | Discovered new exit (range 9) 572 | -10/Materials | Discovered new exit (range 5) 580 | -10/Materials | Central database locked down 838 | -10/Materials | Discovered new exit (range 16) 1142 | -10/Materials | Entered Mines 1149 | -10/Mines | Received a Rocket Launcher from a helpful Derelict 1193 | -10/Mines | Received a Mining Laser from a helpful Derelict 1459 | -10/Mines | Learned Materials stockpile data 1657 | -10/Mines | Discovered new exit (range 9) 1667 | -10/Mines | Entered Materials 1667 | -9/Materials | Evolved 2 slots: Utility x2 2067 | -9/Materials | Identified exit to Mines 2462 | -9/Materials | Entered Mines 2463 | -9/Mines | Assembled infested the area 2641 | -9/Mines | Discovered new exit (range 10) 2651 | -9/Mines | Identified exit to Materials 2742 | -9/Mines | Assisted by bots powering up and referring to "LRC-V3" 2817 | -9/Mines | A Derelict revealed a hidden shortcut to a safe place 2897 | -9/Mines | Identified exit to Zion 3042 | -9/Mines | Discovered exit to Materials (range 7) 3167 | -9/Mines | Discovered new exit (range 14) 3293 | -9/Mines | Deemed a non-threat by the Exiles lab entrance 3297 | -9/Mines | Identified exit to Exiles 3299 | -9/Mines | Entered Exiles 3333 | -9/Exiles | Met 8R-AWN 3358 | -9/Exiles | Met EX-HEX 3395 | -9/Exiles | Met EX-BIN 3414 | -9/Exiles | Aligned with FarCom system 3416 | -9/Exiles | Given EX-Vault access code 3448 | -9/Exiles | Opened EX-Vault 3461 | -9/Exiles | Found Firepult 3493 | -9/Exiles | Warned to stay clear of 0b10 Research branches 3534 | -9/Exiles | Met EX-DEC 3592 | -9/Exiles | Discovered new exit (range 10) 3602 | -9/Exiles | Identified exit to Mines 3604 | -9/Exiles | Left Exiles lab with Firepult 3604 | -9/Exiles | Entered Mines 3611 | -8/Mines | Discovered exit to Materials (range 15) 3829 | -8/Mines | Entered Materials 3829 | -8/Materials | Evolved 2 slots: Propulsion x1, Utility x1 3830 | -8/Materials | Identified exit to Storage 3830 | -8/Materials | Discovered exit to Storage (range 15) 3907 | -8/Materials | Build established: Skirmisher 4212 | -8/Materials | Entered Storage 4267 | -8/Storage | Build established: Scavenger-Skirmisher 4272 | -8/Storage | Garrison activated, responded to threat 4591 | -8/Storage | Assisted by bots powering up and referring to "LRC-V3" 4607 | -8/Storage | Garrison activated, responded to threat 5209 | -8/Storage | Discovered new exit (range 5) 5312 | -8/Storage | Identified exit to Factory 5313 | -8/Storage | Entered Factory 5313 | -7/Factory | Accompanied by 8 allies 5313 | -7/Factory | Evolved 2 slots: Power x1, Utility x1 5414 | -7/Factory | Build established: Commander-Skirmisher 6055 | -7/Factory | Build established: Mutant 6565 | -7/Factory | Discovered new exit (range 4) 6570 | -7/Factory | Identified exit to Factory 6573 | -7/Factory | Entered another Factory area 6573 | -6/Factory | Evolved 2 slots: Propulsion x1, Utility x1 6662 | -6/Factory | Found Prototype Launcher 6662 | -6/Factory | Identified Scatter Rocket Array 6665 | -6/Factory | Found Scatter Rocket Array 6741 | -6/Factory | Fabricated Power Amplifier? 6884 | -6/Factory | Build established: Skirmisher 7496 | -6/Factory | Discovered new exit (range 5) 7503 | -6/Factory | Identified exit to Factory 7513 | -6/Factory | Entered another Factory area 7513 | -5/Factory | Evolved 2 slots: Propulsion x1, Utility x1 7637 | -5/Factory | Build established: Scavenger-Skirmisher 7893 | -5/Factory | Discovered new exit (range 13) 7934 | -5/Factory | Identified exit to Factory 8141 | -5/Factory | Discovered new exit (range 15) 8315 | -5/Factory | Identified exit to Upper Caves 8316 | -5/Factory | Entered Upper Caves 8623 | -5/Upper Caves | Build established: Mutant 8686 | -5/Upper Caves | Self-destructed Last Messages --------------- 08670_ Destroyed Hpw. Shock Rifle. 08670_ P-70 Sage destroyed. 08670_ Arm. Treads destroyed. 08670_ Penetrated by Slug. 08670_ Slug penetrates Wall. 08671_ VTOL Module fries itself beyond repair. 08671_ Autogun fries itself beyond repair. 08673_ Unknown Processor fries itself beyond repair. 08673_ Penetrated by Slug. 08675_ Slug penetrates Y-72 Warden. 08675_ Wall Reinforcements breached. 08676_ Imp. Cooling System destroyed. 08678_ Y-72 Warden Adv. Heat Sink blasted off. 08679_ Imp. Terrain Scanner destroyed. 08682_ Penetrated by Slug. 08683_ Y-72 Warden heat short circuits Particle Reactor. 08685_ Penetrated by Slug. 08685_ Imp. Medium Treads destroyed. 08685_ Slug penetrates Wall. 08686_ Y-72 Warden heat short circuits Railgun. Map ----- +----------------------------------------------------+ | ?????????????????????????????????????????????????? | | ?????????????????????????????????????????????????? | | ?????????????????????????????????????????????????? | | ?????????????????????????????????????????????????? | | ?????????????????????????????????????????????????? | | ?????????????????????????????????????????????????? | | ?????????????????????????????????????????????????? | | ?????????????????????????????????????????????????? | | ?????????????????????????????????????????????????? | | ????????????????????#????????????????????????????? | | ?????????????????????#?###?? ???????????????????? | | ?????????????????????### ??? ?? ????????????????? | | ?????????????????#??## ? ? ?? ??????????????? | | ???????????????#?#### ? ? ??? ??????????????? | | ???????????#??##?## ##??###??? ??????????????? | | ?????????????#???# ###?###??? ??????????????? | | ????????????##?### ##? ?## ?????????????? | | ????????????##### ????# ???????????????? | | ???????????##??#?? ? ? ? ? ?###??? ??? ?? | | ????????????###? ? #? ? ###??#?? ? ? | | ??????? ?????# ?? ??# #?#? ? #??####?????? ? | | ???? ??????#?#??##??## #### ???#?#?####??? ### | | ????? ??##??#?#?#### ######?#?### ###?#? ### | | ??????????#######?### ######### ##?#? #?? | | ??????????#### #### % ## ##?# ##? | | ??????#?#????#???# ###@### ## ???# ##? | | ??????????#?##?#?# ###!%#### # #??## #?# | | ?????#??# ?## ??# ##l #Y%"?## # #??# ### | | ????????# ## ### #" #%##?X# # #?#?# ### | | ???#?#?## #" #%X# ## ##??# | | ????????# #"? # ## ?# ##### | | ???#????#### #"? ?# ### | | ??????????# #"? ??# ## | | ???#?????## #"??! "# #### # | | ?????#???### #"" ?""# ##### | | ??????? ?### ##"" """## # ### | | ???? ## ##"" ""### # ### # | | ???? #?# ####### ## ##?# # | | ???? #### ######### ?## | | ?????## ##?##### #??#?###?? ## | | ??????# ##?##?## ##?#??? ### | | ??????# #??#?#?# #?##??? ?### | | ?????? ##?## ####?#? ##?### | | ?????? ????# ## ##?#####? #?#?## | | ???????# ????# ?## ##??? ? ?##### | | ?????????????# #??## #########??#?? ### | | ?????????????#####????## ##???#??????# ## | | ????????? ?#?#?#??#??### ##????##?? ??? ### | | ???????????????#??#???## #???? ??? ?? ??## | | ?????????????#?????????## ????? ?? ? ?? #??## | +----------------------------------------------------+ Best States ------------- Heat Dissipation 94 Energy Generation 31 Energy Capacity 500 Matter Stores 300 Matter Capacity 300 Sight Range 18 Robot Scan Range 15 Terrain Scan Range 16 Terrain Scan Density 110 Armor Coverage 375 Evasion (%) 50 Targeting Accuracy 6 Recoil Reduction 5 Item Schematics ----------------- None Robot Schematics ------------------ None Fabricated ------------ Power Amplifier | x2 | -6/Factory | Preloaded Alien Tech Used ----------------- None Achievements -------------- None Challenges ------------ None Game ------ Seed MasterOmegaKinecellerator Manual? 0 Play Time 01:04:48 Cumulative 77.3 hours Start 2023.06.12 @ 11:43:37 End 2023.06.12 @ 12:47:04 Sessions 1 Manual Loads 0 Difficulty Rogue Special Mode None Game No. 68 Rogue 68 Adventurer 0 Explorer 0 Win Type - Total 0 Types 0/0/0/0/0/0/0/0/0 Lore% 34 Gallery% 44 Achievement% 34 Wizard Run 0 Options --------- ASCII 0 Keyboard 0 Movement Numpad Keybinds 0 Fullscreen 1 Font 18/SmallcapsGlow Map View 76x50 Tactical HUD 1 Map Filters NONE Filters NONE Steam 1 RUN: df427509-f9f4-4b66-aae1-5486f43cc332